{"text_format":"3","workbook":"xlsx","n_sheets":6,"sheets":["Presentación","Datos","BBC","BBC_2","Varios","ODS-EBC"],"not_rendered":{"charts":1,"images":5,"external_links":1},"read":"whole","date_system":"1900"}

{"sheet":"Presentación","index":0,"n_rows":34,"n_cols":3,"rows_kept":34}
[]
[]
[null,"Presentación y objetivos “Empresas Simpatizantes de la Economía del Bien Común”."]
[]
[null,"El presente documento es una auto evaluación a realizar por la misma empresa con su criterio personal, no valida"]
[null,"por parte de la EBC ninguna de sus respuestas. El objetivo es que las empresas que simpatizan con el movimiento"]
[null,"de la Economía del Bien Común tengan una visión rápida de donde les gustaría estar en un breve espacio de "]
[null,"tiempo, y comenzar su andadura para la obtención de la “Primera Semilla”, ya como Empresa asociada a la EBC."]
[]
[null,"Normas para su cumplimentación:"]
[]
[null,"Lea detenidamente cada una de las 20 preguntas, que se corresponden con los 20 cuadros de la Matriz del BC, la"]
[null,"cual relaciona los Grupos de Interés de la Empresa, con los 4 valores globales de la EBC. Si desea cumplimentar "]
[null,"con más detalle la hoja Datos, tenemos a su disposición un manual profesional del Balance del Bien Común (reducido),"]
[null,"donde le ampliará información sobre cada cuadro de la Matriz (no es necesario para este auto test)."]
[null,"Cada cuadro de la Matriz admite una puntuación entre 0 y 10, con el siguiente criterio:"]
[]
[]
[null,"0: No se tiene en cuenta este indicador, ni se conoce"]
[null,"1: No se tiene en cuenta este indicador, aunque se conoce"]
[null,"2: Se conoce el indicador y se tiene en cuenta. Se cumple en muy pocas ocasiones"]
[null,"3: Se conoce el indicador y se tiene en cuenta. Se cumple en pocas ocasiones"]
[null,"4: Se conoce el indicador y se tiene en cuenta. Se cumple en algunas ocasiones"]
[null,"5: Se cumple en varias ocasiones y se hace un esfuerzo consciente para aumentar su cumplimiento"]
[null,"6: Se cumple en varias ocasiones y forma parte de la política de la organización su cumplimiento"]
[null,"7: Se cumple en numerosas ocasiones y se hace un seguimiento anual para mejorar el indicador"]
[null,"8: Se cumple la mayoría de las ocasiones y se hace un seguimiento constante para mejorar el indicador"]
[null,"9: Se cumple en su totalidad salvo excepciones no previstas"]
[null,"10: Se cumple en cualquier circunstancia"]
[]
[]
[null,null,"Solo se puede cumplimentar la columna D de la hoja Datos"]
[]
[null,"Si deseas más información contacta directamente con el Nodo de Empresas."]

{"sheet":"Datos","index":1,"n_rows":21,"n_cols":5,"rows_kept":21}
[null,null,"Descripción","Valor 0-10"]
[null,"A1: Dignidad humana en la cadena de suministro","Para seleccionar a nuestros proveedores, tenemos en cuenta aspectos sociales (condiciones laborales dignas, comportamiento ético,…) ",null,{"$f":"D2/10*50","v":0}]
[null,"A2: Justicia y solidaridad en la cadena de suministro","Las relaciones con nuestros proveedores son justas, duraderas y basadas en la confianza",null,{"$f":"D3/10*50","v":0}]
[null,"A3: Sostenibilidad medioambiental en la cadena de suministro","Conocemos los impactos ambientales de nuestra cadena de suministro y seleccionamos las opciones más sostenibles",null,{"$f":"D4/10*50","v":0}]
[null,"A4: Transparencia y participación democrática en cadena suministro","Mantenemos unas relaciones transparentes y participativas con nuestros proveedores y tenemos en cuenta sus aportaciones en la toma de decisiones relevantes para ellos",null,{"$f":"D5/10*50","v":0}]
[null,"B1: Actitud ética en la gestión de recursos financieros","Nuestra financiación proviene de banca ética, entidades bancarias cooperativas o a través de nuestros grupos de interés (clientes, proveedores, trabajadores, entorno social o propiedad)",null,{"$f":"D6/10*50","v":0}]
[null,"B2: Actitud solidaria en la gestión de recursos financieros","El reparto de beneficios se realiza una vez cubiertos los gastos futuros (pago a proveedores, trabajadores,…) y sin incurrir en una nueva deuda",null,{"$f":"D7/10*50","v":0}]
[null,"B3: Inversión financiera sostenible y uso de recursos financieros","Realizamos inversiones destinadas a mejorar los impactos ambientales y sociales de nuestra actividad e invertimos en proyectos externos que aportan valor en la misma línea. ",null,{"$f":"D8/10*50","v":0}]
[null,"B4: Propiedad y participación democrática","Nuestra forma jurídica facilita la participación democrática en la organización de los diferentes grupos de interés (p.e. cooperativas)",null,{"$f":"D9/10*50","v":0}]
[null,"C1: Dignidad humana en el puesto de trabajo","Mantenemos una cultura de empresa orientada a las personas empleadas y aseguramos unas condiciones de trabajo saludables y seguras",null,{"$f":"D10/10*50","v":0}]
[null,"C2: Formalidad en los contratos de trabajo","La diferencia salarial máxima es de 1:5,(sueldo máximo = cinco veces sueldo mínimo) y el horario laboral fomenta la conciliación familiar (equilibrio entre familia y trabajo)",null,{"$f":"D11/10*50","v":0}]
[null,"C3: Promoción de la responsabilidad medioambiental de los trabajadores","Fomentamos las prácticas ecológicas de las personas del equipo de trabajo respecto a su alimentación y movilidad (alimentación bio y de proximidad, movilidad sostenible,…)",null,{"$f":"D12/10*50","v":0}]
[null,"C4: Transparencia y participación democrática interna","La comunicación interna es transparente y todos los trabajadores pueden participar en la toma de decisiones de forma consensual dentro de sus equipos",null,{"$f":"D13/10*50","v":0}]
[null,"D1: Actitud ética con los clientes","La información sobre nuestra empresa y productos/servicios es honesta, completa y auténtica y se dirige a las necesidades de nuestros clientes, ocupándonos de forma activa de eliminar cualquier tipo de barrera que impida el acceso a ella o a nuestros P/S",null,{"$f":"D14/10*50","v":0}]
[null,"D2: Cooperación y solidaridad con otras empresas","Trabajamos y cooperamos con otras empresas del mismo o diferente sector con el fin de aumentar los estándares sectoriales (calidad, medioambiente, sociales,…)",null,{"$f":"D15/10*50","v":0}]
[null,"D3: Impacto ambiental por uso y gestión de residuos en productos/servicios","Fomentamos el comportamiento ecológico de nuestros clientes y les proporcionamos información y soluciones en referencia al uso y la gestión de los residuos de nuestros Productos/Servicios",null,{"$f":"D16/10*50","v":0}]
[null,"D4: Participación de los clientes y transparencia del producto","Mantenemos una comunicación transparente con nuestros clientes de forma que estén lo mejor posible informados para poder comparar los servicios correctamente.",null,{"$f":"D17/10*50","v":0}]
[null,"E1: Propósito e impacto positivo de los productos/servicios","Nuestros productos/servicios satisfacen necesidades básicas y promueven el desarrollo personal y/o la diversidad del entorno sin impactos negativos, creando una conciencia sobre los retos de la sociedad (cambio climático, desigualdades sociales,…)",null,{"$f":"D18/10*50","v":0}]
[null,"E2: Contribución a la comunidad","Además de contribuir a nuestro entorno social con impuestos y cuotas de seguridad social, realizamos aportaciones voluntarias de forma regular en forma de recursos económicos, personal, conocimientos,…",null,{"$f":"D19/10*50","v":0}]
[null,"E3: Reducción del impacto medioambiental","En nuestros procesos aplicamos medidas destinadas a minimizar los impactos ambientales derivados de la actividad (reducción del consumo de recursos, emisiones, generación de residuos peligrosos y no peligrosos, vertidos,…)",null,{"$f":"D20/10*50","v":0}]
[null,"E4: Transparencia y participación democrática del entorno social","Comunicamos aspectos de nuestra actividad y procesos y fomentamos un diálogo abierto con nuestros grupos de interés",null,{"$f":"D21/10*50","v":0}]

{"sheet":"BBC","index":2,"n_rows":17,"n_cols":17,"rows_kept":17,"hidden":true,"merged":[[1,7,1,13],[2,0,3,5],[3,7,4,8],[3,9,4,10],[3,11,4,13],[5,11,5,13],[6,1,6,4],[6,5,6,8],[6,9,6,12],[6,13,6,16],[7,0,8,0],[7,1,7,4],[7,5,7,8],[7,9,7,12],[7,13,7,16],[9,0,10,0],[9,1,9,4],[9,5,9,8],[9,9,9,12],[9,13,9,16],[11,0,12,0],[11,1,11,4],[11,5,11,8],[11,9,11,12],[11,13,11,16],[13,0,14,0],[13,1,13,4],[13,5,13,8],[13,9,13,12],[13,13,13,16],[15,0,16,0],[15,1,15,4],[15,5,15,8],[15,9,15,12],[15,13,15,16]]}
[]
[{"$f":"'[1]12.lan'!D91&\" - \"&'[1]0. Intro'!B3&\" \"&'[1]0. Intro'!C3","v":"Calculadora del Bien Común - Versión 5.02"},{"$nulls":6},{"$f":"'[1]12.lan'!D212","v":"Nota: esto no es un certificado"}]
[{"$f":"'[1]12.lan'!D213","v":"MATRIZ DEL BIEN COMÚN"}]
[{"$nulls":7},{"$f":"'[1]12.lan'!D92","v":"Puntuación total:"},null,{"$f":"'[1]3. Calc'!L4","v":0},null,{"$f":"'[1]12.lan'!D214&\" \"&'[1]3. Calc'!$M$4&'[1]12.lan'!D215","v":"de 1000Puntos"}]
["Primeros pasos"]
[]
[{"$f":"'[1]12.lan'!D206","v":"Valores ►\nGrupos deinterés ▼"},{"$f":"'[1]12.lan'!D216","v":"Dignidad humana"},{"$nulls":3},{"$f":"'[1]12.lan'!D217","v":"Solidaridad y justicia"},{"$nulls":3},{"$f":"'[1]12.lan'!D218","v":"Sostenibilidad medioambiental"},{"$nulls":3},{"$f":"'[1]12.lan'!D219","v":"Transparencia y participación democrática"}]
[{"$f":"\"A: \"&'[1]12.lan'!D108","v":"A: Proveedores"},{"$f":"'[1]12.lan'!B109","v":"A1: Dignidad humana en la cadena de suministro"},{"$nulls":3},{"$f":"'[1]12.lan'!B112","v":"A2: Justicia y solidaridad en la cadena de suministro"},{"$nulls":3},{"$f":"'[1]12.lan'!B116","v":"A3: Sostenibilidad medioambiental en la cadena de suministro"},{"$nulls":3},{"$f":"'[1]12.lan'!B119","v":"A4: Transparencia y participación democrática en la cadena de suministro"}]
[null,{"$f":"'[1]3. Calc'!L10","v":0},{"$f":"'[1]12.lan'!$D$214","v":"de"},{"$f":"'[1]3. Calc'!M10","v":{"v":51.2820512820513,"d":"51"}},{"$f":"'[1]3. Calc'!K10","v":{"v":0,"d":"0 %"}},{"$f":"'[1]3. Calc'!L13","v":0},{"$f":"'[1]12.lan'!$D$214","v":"de"},{"$f":"'[1]3. Calc'!M13","v":{"v":51.2820512820513,"d":"51"}},{"$f":"'[1]3. Calc'!K13","v":{"v":0,"d":"0 %"}},{"$f":"'[1]3. Calc'!L16","v":0},{"$f":"'[1]12.lan'!$D$214","v":"de"},{"$f":"'[1]3. Calc'!M16","v":{"v":51.2820512820513,"d":"51"}},{"$f":"'[1]3. Calc'!K16","v":{"v":0,"d":"0 %"}},{"$f":"'[1]3. Calc'!L19","v":0},{"$f":"'[1]12.lan'!$D$214","v":"de"},{"$f":"'[1]3. Calc'!M19","v":{"v":25.6410256410256,"d":"26"}},{"$f":"'[1]3. Calc'!K19","v":{"v":0,"d":"0 %"}}]
[{"$f":"\"B: \"&'[1]12.lan'!D122","v":"B: Propietarios y proveedores financieros"},{"$f":"'[1]12.lan'!B123","v":"B1: Actitud ética en la gestión de recursos financieros"},{"$nulls":3},{"$f":"'[1]12.lan'!B127","v":"B2: Actitud solidaria en la gestión de recursos financieros"},{"$nulls":3},{"$f":"'[1]12.lan'!B130","v":"B3: Inversiones financieras sostenibles y uso de los recursos financieros"},{"$nulls":3},{"$f":"'[1]12.lan'!B134&IF('[1]9. Weighting'!I28=1,'[1]12.lan'!D211,\"\")","v":"B4: Propiedad y participación democrática"}]
[null,{"$f":"'[1]3. Calc'!L22","v":0},{"$f":"'[1]12.lan'!$D$214","v":"de"},{"$f":"'[1]3. Calc'!M22","v":{"v":51.2820512820513,"d":"51"}},{"$f":"'[1]3. Calc'!K22","v":{"v":0,"d":"0 %"}},{"$f":"'[1]3. Calc'!L24","v":0},{"$f":"'[1]12.lan'!$D$214","v":"de"},{"$f":"'[1]3. Calc'!M24","v":{"v":51.2820512820513,"d":"51"}},{"$f":"'[1]3. Calc'!K24","v":{"v":0,"d":"0 %"}},{"$f":"'[1]3. Calc'!L27","v":0},{"$f":"'[1]12.lan'!$D$214","v":"de"},{"$f":"'[1]3. Calc'!M27","v":{"v":51.2820512820513,"d":"51"}},{"$f":"'[1]3. Calc'!K27","v":{"v":0,"d":"0 %"}},{"$f":"'[1]3. Calc'!L30","v":0},{"$f":"'[1]12.lan'!$D$214","v":"de"},{"$f":"'[1]3. Calc'!M30","v":{"v":51.2820512820513,"d":"51"}},{"$f":"'[1]3. Calc'!K30","v":{"v":0,"d":"0 %"}}]
[{"$f":"\"C: \"&'[1]12.lan'!D137","v":"C: Trabajadores"},{"$f":"'[1]12.lan'!B138","v":"C1: Dignidad humana en el puesto de trabajo"},{"$nulls":3},{"$f":"'[1]12.lan'!B143","v":"C2: Formalidad de los contratos de trabajo"},{"$nulls":3},{"$f":"'[1]12.lan'!B148","v":"C3: Promoción de la responsabilidad medioambiental de los trabajadores"},{"$nulls":3},{"$f":"'[1]12.lan'!B153","v":"C4: Transparencia y participación democrática interna"}]
[null,{"$f":"'[1]3. Calc'!L34","v":0},{"$f":"'[1]12.lan'!$D$214","v":"de"},{"$f":"'[1]3. Calc'!M34","v":{"v":51.2820512820513,"d":"51"}},{"$f":"'[1]3. Calc'!K34","v":{"v":0,"d":"0 %"}},{"$f":"'[1]3. Calc'!L37","v":0},{"$f":"'[1]12.lan'!$D$214","v":"de"},{"$f":"'[1]3. Calc'!M37","v":{"v":51.2820512820513,"d":"51"}},{"$f":"'[1]3. Calc'!K37","v":{"v":0,"d":"0 %"}},{"$f":"'[1]3. Calc'!L40","v":0},{"$f":"'[1]12.lan'!$D$214","v":"de"},{"$f":"'[1]3. Calc'!M40","v":{"v":51.2820512820513,"d":"51"}},{"$f":"'[1]3. Calc'!K40","v":{"v":0,"d":"0 %"}},{"$f":"'[1]3. Calc'!L43","v":0},{"$f":"'[1]12.lan'!$D$214","v":"de"},{"$f":"'[1]3. Calc'!M43","v":{"v":51.2820512820513,"d":"51"}},{"$f":"'[1]3. Calc'!K43","v":{"v":0,"d":"0 %"}}]
[{"$f":"\"D: \"&'[1]12.lan'!D158","v":"D: Clientes y otras empresas"},{"$f":"'[1]12.lan'!B159","v":"D1: Actitud ética con los clientes"},{"$nulls":3},{"$f":"'[1]12.lan'!B163","v":"D2: Cooperación y solidaridad con otras empresas del sector"},{"$nulls":3},{"$f":"'[1]12.lan'!B167","v":"D3: Impacto medioambiental del uso y de la gestión de residuos de los productos y servicios"},{"$nulls":3},{"$f":"'[1]12.lan'!B171","v":"D4: Participación de los clientes y transparencia de producto"}]
[null,{"$f":"'[1]3. Calc'!L47","v":0},{"$f":"'[1]12.lan'!$D$214","v":"de"},{"$f":"'[1]3. Calc'!M47","v":{"v":51.2820512820513,"d":"51"}},{"$f":"'[1]3. Calc'!K47","v":{"v":0,"d":"0 %"}},{"$f":"'[1]3. Calc'!L50","v":0},{"$f":"'[1]12.lan'!$D$214","v":"de"},{"$f":"'[1]3. Calc'!M50","v":{"v":51.2820512820513,"d":"51"}},{"$f":"'[1]3. Calc'!K50","v":{"v":0,"d":"0 %"}},{"$f":"'[1]3. Calc'!L53","v":0},{"$f":"'[1]12.lan'!$D$214","v":"de"},{"$f":"'[1]3. Calc'!M53","v":{"v":51.2820512820513,"d":"51"}},{"$f":"'[1]3. Calc'!K53","v":{"v":0,"d":"0 %"}},{"$f":"'[1]3. Calc'!L56","v":0},{"$f":"'[1]12.lan'!$D$214","v":"de"},{"$f":"'[1]3. Calc'!M56","v":{"v":51.2820512820513,"d":"51"}},{"$f":"'[1]3. Calc'!K56","v":{"v":0,"d":"0 %"}}]
[{"$f":"\"E: \"&'[1]12.lan'!D175","v":"E: Entorno social"},{"$f":"'[1]12.lan'!B176","v":"E1: Propósito e impacto positivo de los productos y servicios"},{"$nulls":3},{"$f":"'[1]12.lan'!B180","v":"E2: Contribución a la comunidad"},{"$nulls":3},{"$f":"'[1]12.lan'!B185","v":"E3: Reducción del impacto medioambiental"},{"$nulls":3},{"$f":"'[1]12.lan'!B189","v":"E4: Transparencia y participación democrática del entorno social"}]
[null,{"$f":"'[1]3. Calc'!L60","v":0},{"$f":"'[1]12.lan'!$D$214","v":"de"},{"$f":"'[1]3. Calc'!M60","v":{"v":51.2820512820513,"d":"51"}},{"$f":"'[1]3. Calc'!K60","v":{"v":0,"d":"0 %"}},{"$f":"'[1]3. Calc'!L63","v":0},{"$f":"'[1]12.lan'!$D$214","v":"de"},{"$f":"'[1]3. Calc'!M63","v":{"v":51.2820512820513,"d":"51"}},{"$f":"'[1]3. Calc'!K63","v":{"v":0,"d":"0 %"}},{"$f":"'[1]3. Calc'!L67","v":0},{"$f":"'[1]12.lan'!$D$214","v":"de"},{"$f":"'[1]3. Calc'!M67","v":{"v":51.2820512820513,"d":"51"}},{"$f":"'[1]3. Calc'!K67","v":{"v":0,"d":"0 %"}},{"$f":"'[1]3. Calc'!L70","v":0},{"$f":"'[1]12.lan'!$D$214","v":"de"},{"$f":"'[1]3. Calc'!M70","v":{"v":51.2820512820513,"d":"51"}},{"$f":"'[1]3. Calc'!K70","v":{"v":0,"d":"0 %"}}]

{"sheet":"BBC_2","index":3,"n_rows":17,"n_cols":17,"rows_kept":17,"merged":[[1,7,1,13],[2,0,3,5],[3,7,4,8],[3,9,4,10],[3,11,4,13],[5,11,5,13],[6,1,6,4],[6,5,6,8],[6,9,6,12],[6,13,6,16],[7,0,8,0],[7,1,7,4],[7,5,7,8],[7,9,7,12],[7,13,7,16],[9,0,10,0],[9,1,9,4],[9,5,9,8],[9,9,9,12],[9,13,9,16],[11,0,12,0],[11,1,11,4],[11,5,11,8],[11,9,11,12],[11,13,11,16],[13,0,14,0],[13,1,13,4],[13,5,13,8],[13,9,13,12],[13,13,13,16],[15,0,16,0],[15,1,15,4],[15,5,15,8],[15,9,15,12],[15,13,15,16]]}
[]
["Calculadora del Bien Común ",{"$nulls":6},"Nota: esto no es un certificado"]
["MATRIZ EVALUACIÓN"]
[{"$nulls":7},"Puntuación total:",null,{"$f":"B9+F9+J9+M9+N9+B11+F11+J11+N11+B13+F13+J13+N13+B15+F15+J15+N15+B17+F17+J17+N17","v":0},null,"de 1000 Puntos"]
["Primeros pasos"]
[]
["Valores ►\nGrupos de interés ▼","Dignidad humana",{"$nulls":3},"Solidaridad y justicia",{"$nulls":3},"Sostenibilidad medioambiental",{"$nulls":3},"Transparencia y participación democrática"]
["A: Proveedores","A1: Dignidad humana en la cadena de suministro",{"$nulls":3},"A2: Justicia y solidaridad en la cadena de suministro",{"$nulls":3},"A3: Sostenibilidad medioambiental en la cadena de suministro",{"$nulls":3},"A4: Transparencia y participación democrática en la cadena de suministro"]
[null,{"$f":"Datos!E2","v":0},"de",50,{"$f":"B9/D9","v":{"v":0,"d":"0 %"}},{"$f":"Datos!E3","v":0},"de",50,{"$f":"F9/H9","v":{"v":0,"d":"0 %"}},{"$f":"Datos!E4","v":0},"de",50,{"$f":"J9/L9","v":{"v":0,"d":"0 %"}},{"$f":"Datos!E5","v":0},"de",50,{"$f":"N9/P9","v":{"v":0,"d":"0 %"}}]
["B: Propietarios y proveedores financieros","B1: Actitud ética en la gestión de recursos financieros",{"$nulls":3},"B2: Actitud solidaria en la gestión de recursos financieros",{"$nulls":3},"B3: Inversiones financieras sostenibles y uso de los recursos financieros",{"$nulls":3},"B4: Propiedad y participación democrática"]
[null,{"$f":"Datos!E6","v":0},"de",50,{"$f":"B11/D11","v":{"v":0,"d":"0 %"}},{"$f":"Datos!E7","v":0},"de",50,{"$f":"F11/H11","v":{"v":0,"d":"0 %"}},{"$f":"Datos!E8","v":0},"de",50,{"$f":"J11/L11","v":{"v":0,"d":"0 %"}},{"$f":"Datos!E9","v":0},"de",50,{"$f":"N11/P11","v":{"v":0,"d":"0 %"}}]
["C: Trabajadores","C1: Dignidad humana en el puesto de trabajo",{"$nulls":3},"C2: Formalidad de los contratos de trabajo",{"$nulls":3},"C3: Promoción de la responsabilidad medioambiental de los trabajadores",{"$nulls":3},"C4: Transparencia y participación democrática interna"]
[null,{"$f":"Datos!E10","v":0},"de",50,{"$f":"B13/D13","v":{"v":0,"d":"0 %"}},{"$f":"Datos!E11","v":0},"de",50,{"$f":"F13/H13","v":{"v":0,"d":"0 %"}},{"$f":"Datos!E12","v":0},"de",50,{"$f":"J13/L13","v":{"v":0,"d":"0 %"}},{"$f":"Datos!E13","v":0},"de",50,{"$f":"N13/P13","v":{"v":0,"d":"0 %"}}]
["D: Clientes y otras empresas","D1: Actitud ética con los clientes",{"$nulls":3},"D2: Cooperación y solidaridad con otras empresas del sector",{"$nulls":3},"D3: Impacto medioambiental del uso y de la gestión de residuos de los productos y servicios",{"$nulls":3},"D4: Participación de los clientes y transparencia de producto"]
[null,{"$f":"Datos!E14","v":0},"de",50,{"$f":"B15/D15","v":{"v":0,"d":"0 %"}},{"$f":"Datos!E15","v":0},"de",50,{"$f":"F15/H15","v":{"v":0,"d":"0 %"}},{"$f":"Datos!E16","v":0},"de",50,{"$f":"J15/L15","v":{"v":0,"d":"0 %"}},{"$f":"Datos!E17","v":0},"de",50,{"$f":"N15/P15","v":{"v":0,"d":"0 %"}}]
["E: Entorno social","E1: Propósito e impacto positivo de los productos y servicios",{"$nulls":3},"E2: Contribución a la comunidad",{"$nulls":3},"E3: Reducción del impacto medioambiental",{"$nulls":3},"E4: Transparencia y participación democrática del entorno social"]
[null,{"$f":"Datos!E18","v":0},"de",50,{"$f":"B17/D17","v":{"v":0,"d":"0 %"}},{"$f":"Datos!E19","v":0},"de",50,{"$f":"F17/H17","v":{"v":0,"d":"0 %"}},{"$f":"Datos!E20","v":0},"de",50,{"$f":"J17/L17","v":{"v":0,"d":"0 %"}},{"$f":"Datos!E21","v":0},"de",50,{"$f":"N17/P17","v":{"v":0,"d":"0 %"}}]

{"sheet":"Varios","index":4,"n_rows":40,"n_cols":7,"rows_kept":40}
[]
[null,"VISTA GLOBAL DEL BALANCE: Valores",{"$nulls":4},"Áreas de mejora"]
[null,"Dignidad humana",{"$f":"SUM(Datos!E2,Datos!E6,Datos!E10,Datos!E14,Datos!E18)","v":0},"de",250,{"$f":"C3/E3","v":{"v":0,"d":"0%"}}]
[null,"Solidaridad y justicia",{"$f":"SUM(Datos!E3,Datos!E7,Datos!E11,Datos!E15,Datos!E19)","v":0},"de",250,{"$f":"C4/E4","v":{"v":0,"d":"0%"}}]
[null,"Sostenibilidad medioambiental",{"$f":"SUM(Datos!E4,Datos!E8,Datos!E12,Datos!E16,Datos!E20)","v":0},"de",250,{"$f":"C5/E5","v":{"v":0,"d":"0%"}}]
[null,"Transparencia y participación democrática",{"$f":"SUM(Datos!E5,Datos!E9,Datos!E13,Datos!E17,Datos!E21)","v":0},"de",250,{"$f":"C6/E6","v":{"v":0,"d":"0%"}}]
[null,"TOTAL",{"$f":"SUM(C3:C6)","v":0},"de",1000,{"$f":"C7/E7","v":{"v":0,"d":"0%"}}]
[]
[]
[null,"VISTA GLOBAL BALANCE: Grupos Interés"]
[null,"Proveedores",{"$f":"SUM(Datos!E2,Datos!E3,Datos!E4,Datos!E5)","v":0},"de",200,{"$f":"C11/E11","v":{"v":0,"d":"0%"}}]
[null,"Propietarios y proveedores financieros",{"$f":"SUM(Datos!E6,Datos!E7,Datos!E8,Datos!E9)","v":0},"de",200,{"$f":"C12/E12","v":{"v":0,"d":"0%"}}]
[null,"Trabajadores",{"$f":"SUM(Datos!E11,Datos!E12,Datos!E13,Datos!E10)","v":0},"de",200,{"$f":"C13/E13","v":{"v":0,"d":"0%"}}]
[null,"Clientes y otras empresas",{"$f":"SUM(Datos!E15,Datos!E16,Datos!E17,Datos!E14)","v":0},"de",200,{"$f":"C14/E14","v":{"v":0,"d":"0%"}}]
[null,"Entorno social",{"$f":"SUM(Datos!E19,Datos!E20,Datos!E21,Datos!E18)","v":0},"de",200,{"$f":"C15/E15","v":{"v":0,"d":"0%"}}]
[null,"TOTAL",{"$f":"SUM(C11:C15)","v":0},"de",1000,{"$f":"C16/E16","v":{"v":0,"d":"0%"}}]
[]
[]
[null,"VISTA GLOBAL DEL BALANCE"]
[null,"A1: Dignidad humana en la cadena de suministro",{"$f":"Datos!E2","v":0},"de",50,{"$f":"C20/E20","v":{"v":0,"d":"0%"}}]
[null,"A2: Justicia y solidaridad en la cadena de suministro",{"$f":"Datos!E3","v":0},"de",50,{"$f":"C21/E21","v":{"v":0,"d":"0%"}}]
[null,"A3: Sostenibilidad medioambiental en la cadena de suministro",{"$f":"Datos!E4","v":0},"de",50,{"$f":"C22/E22","v":{"v":0,"d":"0%"}}]
[null,"A4: Transparencia y participación democrática en cadena suministro",{"$f":"Datos!E5","v":0},"de",50,{"$f":"C23/E23","v":{"v":0,"d":"0%"}}]
[null,"B1: Actitud ética en la gestión de recursos financieros",{"$f":"Datos!E6","v":0},"de",50,{"$f":"C24/E24","v":{"v":0,"d":"0%"}}]
[null,"B2: Actitud solidaria en la gestión de recursos financieros",{"$f":"Datos!E7","v":0},"de",50,{"$f":"C25/E25","v":{"v":0,"d":"0%"}}]
[null,"B3: Inversión financiera sostenible y uso de recursos financieros",{"$f":"Datos!E8","v":0},"de",50,{"$f":"C26/E26","v":{"v":0,"d":"0%"}}]
[null,"B4: Propiedad y participación democrática",{"$f":"Datos!E9","v":0},"de",50,{"$f":"C27/E27","v":{"v":0,"d":"0%"}}]
[null,"C1: Dignidad humana en el puesto de trabajo",{"$f":"Datos!E10","v":0},"de",50,{"$f":"C28/E28","v":{"v":0,"d":"0%"}}]
[null,"C2: Formalidad en los contratos de trabajo",{"$f":"Datos!E11","v":0},"de",50,{"$f":"C29/E29","v":{"v":0,"d":"0%"}}]
[null,"C3: Promoción de la responsabilidad medioambiental de los trabajadores",{"$f":"Datos!E12","v":0},"de",50,{"$f":"C30/E30","v":{"v":0,"d":"0%"}}]
[null,"C4: Transparencia y participación democrática interna",{"$f":"Datos!E13","v":0},"de",50,{"$f":"C31/E31","v":{"v":0,"d":"0%"}}]
[null,"D1: Actitud ética con los clientes",{"$f":"Datos!E14","v":0},"de",50,{"$f":"C32/E32","v":{"v":0,"d":"0%"}}]
[null,"D2: Cooperación y solidaridad con otras empresas",{"$f":"Datos!E15","v":0},"de",50,{"$f":"C33/E33","v":{"v":0,"d":"0%"}}]
[null,"D3: Impacto ambiental por uso y gestión de residuos en productos/servicios",{"$f":"Datos!E16","v":0},"de",50,{"$f":"C34/E34","v":{"v":0,"d":"0%"}}]
[null,"D4: Participación de los clientes y transparencia del producto",{"$f":"Datos!E17","v":0},"de",50,{"$f":"C35/E35","v":{"v":0,"d":"0%"}}]
[null,"E1: Propósito e impacto positivo de los productos/servicios",{"$f":"Datos!E18","v":0},"de",50,{"$f":"C36/E36","v":{"v":0,"d":"0%"}}]
[null,"E2: Contribución a la comunidad",{"$f":"Datos!E19","v":0},"de",50,{"$f":"C37/E37","v":{"v":0,"d":"0%"}}]
[null,"E3: Reducción del impacto medioambiental",{"$f":"Datos!E20","v":0},"de",50,{"$f":"C38/E38","v":{"v":0,"d":"0%"}}]
[null,"E4: Transparencia y participación democrática del entorno social",{"$f":"Datos!E21","v":0},"de",50,{"$f":"C39/E39","v":{"v":0,"d":"0%"}}]
[null,"TOTAL",{"$f":"SUM(C20:C39)","v":0},"de",{"$f":"SUM(E20:E39)","v":1000},{"$f":"C40/E40","v":{"v":0,"d":"0%"}}]

{"sheet":"ODS-EBC","index":5,"n_rows":22,"n_cols":15,"rows_kept":22}
[]
[]
["ODS-1",{"$f":"(N3+N4+N8+N12)/40","v":{"v":0,"d":"0.0%"}},{"$nulls":10},"A1+A2+B2+C2 /4",{"$f":"Datos!D2","v":0},"A1"]
["ODS-2",{"$f":"(N3+N4+N8)/30","v":{"v":0,"d":"0.0%"}},{"$nulls":10},"A1+A2+B2 /3",{"$f":"Datos!D3","v":0},"A2"]
["ODS-3",{"$f":"(N3+N4+N9+N11+N12+N19+N21)/70","v":{"v":0,"d":"0.0%"}},{"$nulls":10},"A1+A2+B3+C1+C2+E1+E3  /7",{"$f":"Datos!D4","v":0},"A3"]
["ODS-4",{"$f":"(N3+N4+N11)/30","v":{"v":0,"d":"0.0%"}},{"$nulls":10},"A1+A2+C1  /3",{"$f":"Datos!D5","v":0},"A4"]
["ODS-5",{"$f":"(N3+N11+N12)/30","v":{"v":0,"d":"0.0%"}},{"$nulls":10},"A1+C1+C2 /3",{"$f":"Datos!D6","v":0},"B1"]
["ODS-6",{"$f":"(N3+N5+N9+N17+N21)/50","v":{"v":0,"d":"0.0%"}},{"$nulls":10},"A1+A3+B3+D3+E3 /5",{"$f":"Datos!D7","v":0},"B2"]
["ODS-7",{"$f":"(N5+N9+N13+N17+N21)/50","v":{"v":0,"d":"0.0%"}},{"$nulls":10},"A3+B3+C3+D3+E3 /5",{"$f":"Datos!D8","v":0},"B3"]
["ODS-8",{"$f":"(N3+N7+N8+N9+N11+N12+N20)/70","v":{"v":0,"d":"0.0%"}},{"$nulls":10},"A1+B1+B2+B3+C1+C2+E2 /7",{"$f":"Datos!D9","v":0},"B4"]
["ODS-9",{"$f":"(N9+N11+N16+N20)/40","v":{"v":0,"d":"0.0%"}},{"$nulls":10},"B3+C1+D2+E2 /4",{"$f":"Datos!D10","v":0},"C1"]
["ODS-10",{"$f":"(N3+N4+N6+N10+N11+N14+N15+N19+N20+N22)/100","v":{"v":0,"d":"0.0%"}},{"$nulls":10},"A1+A2+A4+B4+C1+C4+D1+E1+E2+E4 /10",{"$f":"Datos!D11","v":0},"C2"]
["ODS-11",{"$f":"(N9+N20)/20","v":{"v":0,"d":"0.0%"}},{"$nulls":10},"B3+E2 /2",{"$f":"Datos!D12","v":0},"C3"]
["ODS-12",{"$f":"(N3+N4+N5+N13+N15+N17+N18+N19+N21)/90","v":{"v":0,"d":"0.0%"}},{"$nulls":10},"A1+A2+A3+C3+D1+D3+D4+E1+E3 /9",{"$f":"Datos!D13","v":0},"C4"]
["ODS-13",{"$f":"(N5+N9+N13+N21)/40","v":{"v":0,"d":"0.0%"}},{"$nulls":10},"A3+B3+C3+E3 /4",{"$f":"Datos!D14","v":0},"D1"]
["ODS-14",{"$f":"(N5+N9+N13+N17+N21)/50","v":{"v":0,"d":"0.0%"}},{"$nulls":10},"A3+B3+C3+D3+E3 /5",{"$f":"Datos!D15","v":0},"D2"]
["ODS-15",{"$f":"(N5+N9+N13+N17+N21)/50","v":{"v":0,"d":"0.0%"}},{"$nulls":10},"A3+B3+C3+D3+E3 /5",{"$f":"Datos!D16","v":0},"D3"]
["ODS-16",{"$f":"(N10+N20+N22)/30","v":{"v":0,"d":"0.0%"}},{"$nulls":10},"B4+E2+E4 /3",{"$f":"Datos!D17","v":0},"D4"]
["ODS-17",{"$f":"(N16+N20+N21+N22)/40","v":{"v":0,"d":"0.0%"}},{"$nulls":10},"D2+E2+E3+E4 /4",{"$f":"Datos!D18","v":0},"E1"]
["Total",{"$f":"SUM(B3:B19)/17","v":{"v":0,"d":"0.0%"}},{"$nulls":11},{"$f":"Datos!D19","v":0},"E2"]
[{"$nulls":13},{"$f":"Datos!D20","v":0},"E3"]
[{"$nulls":13},{"$f":"Datos!D21","v":0},"E4"]